fUSD/lending_fUSD_20240425
["ID","MTS","AMOUNT","RATE_DAILY","PERIOD"]
[323544139,1714080644994,-500.0,0.00010958,2]
[323544140,1714080645003,-500.0,0.00010958,2]
[323544141,1714080645011,-555.98,0.00010958,2]
[323544142,1714080645021,-502.27432106,0.00010958,2]
[323544143,1714080645030,-500.0,0.00010958,2]
[323544144,1714080645039,-150.0,0.00010959,2]
[323544145,1714080645048,-841.18,0.00010959,3]
[323544146,1714080645058,-432.38,0.00010959,2]
[323544147,1714080645067,-749.63590295,0.00011,2]
[323544148,1714080645076,-160.5,0.00011,2]
[323544149,1714080645084,-243.77698425,0.00011,2]
[323544150,1714080645094,-170.63737638,0.00011132,2]
[323544151,1714080645103,-150.0,0.00011166,2]
[323544152,1714080645112,-603.08005336,0.00011231,2]
[323544153,1714080645121,-500.0,0.00011231,2]
[323544154,1714080645130,-500.0,0.00011231,2]
[323544155,1714080645139,-500.0,0.00011231,2]
[323544156,1714080645148,-500.0,0.00011231,2]
[323544157,1714080645157,-500.0,0.00011232,2]
[323544158,1714080645166,-500.0,0.00011232,2]
[323544159,1714080645175,-591.89540234,0.00011232,2]
[323544160,1714080645185,-500.0,0.00011232,2]
[323544161,1714080645194,-388.54,0.00011232,2]
[323544162,1714080645203,-1193.78,0.00011232,2]
[323544163,1714080645213,-500.0,0.00011232,2]
[323544164,1714080645223,-506.30693948,0.00011232,2]
[323544165,1714080645235,-500.0,0.00011232,2]
[323544166,1714080645244,-500.0,0.00011232,2]
[323544167,1714080645253,-584.5230289,0.00011232,2]
[323544168,1714080645262,-500.0,0.00011232,2]
[323544169,1714080645272,-1181.38,0.00011232,2]
[323544170,1714080645281,-500.0,0.00011232,2]
[323544171,1714080645290,-500.0,0.00011232,2]
[323544172,1714080645299,-500.0,0.00011232,2]
[323544173,1714080645309,-273.79,0.00011232,2]
[323544174,1714080645318,-546.42759835,0.00011232,2]
[323544175,1714080645327,-515.46701234,0.00011232,2]
[323544176,1714080645336,-500.0,0.00011232,2]
[323544177,1714080645345,-286.5,0.00011232,2]
[323544178,1714080645354,-500.0,0.00011232,2]
[323544179,1714080645362,-500.0,0.00011232,2]
[323544180,1714080645372,-500.0,0.00011232,2]
[323544181,1714080645381,-500.0,0.00011232,2]
[323544182,1714080645391,-502.54858808,0.00011232,2]
[323544183,1714080645400,-500.0,0.00011232,2]
[323544184,1714080645409,-500.0,0.00011232,2]
[323544185,1714080645418,-500.0,0.00011232,2]
[323544187,1714080645428,-500.0,0.00011232,2]
[323544189,1714080645439,-500.0,0.00011232,2]
[323544190,1714080645448,-500.0,0.00011232,2]
[323544191,1714080645458,-500.0,0.00011232,2]
[323544192,1714080645467,-500.0,0.00011232,2]
[323544193,1714080645477,-500.0,0.00011232,2]
[323544194,1714080645486,-500.0,0.00011232,2]
[323544195,1714080645495,-500.0,0.00011232,2]
[323544196,1714080645504,-500.0,0.00011232,2]
[323544197,1714080645516,-500.0,0.00011232,2]
[323544198,1714080645525,-500.0,0.00011232,2]
[323544199,1714080645535,-500.0,0.00011232,2]
[323544200,1714080645544,-500.0,0.00011232,2]
[323544201,1714080645555,-500.0,0.00011232,2]
[323544202,1714080645564,-500.0,0.00011232,2]
[323544203,1714080645574,-500.0,0.00011232,2]
[323544204,1714080645583,-500.0,0.00011232,2]
[323544205,1714080645593,-500.0,0.00011232,2]
[323544206,1714080645603,-500.0,0.00011232,2]
[323544207,1714080645611,-500.0,0.00011232,2]
[323544208,1714080645621,-154.5209881,0.00011232,2]
[323544209,1714080645631,-153.69872448,0.00011232,2]
[323544210,1714080645640,-500.0,0.00011232,2]
[323544211,1714080645649,-576.62,0.00011232,2]
[323544212,1714080645659,-1233.89,0.00011232,2]
[323544213,1714080645668,-500.0,0.00011232,2]
[323544214,1714080645677,-500.0,0.00011232,2]
[323544215,1714080645687,-500.0,0.00011232,2]
[323544216,1714080645696,-500.0,0.00011232,2]
[323544217,1714080645705,-500.0,0.00011232,2]
[323544218,1714080645714,-500.0,0.00011232,2]
[323544219,1714080645724,-500.0,0.00011232,2]
[323544220,1714080645733,-500.0,0.00011232,2]
[323544221,1714080645743,-1207.27,0.00011232,2]
[323544222,1714080645753,-500.0,0.00011232,2]
[323544223,1714080645790,-499.20191539,0.00011232,2]
[323544224,1714080645800,-500.0,0.00011232,2]
[323544225,1714080645810,-500.0,0.00011232,2]
[323544226,1714080645823,-500.0,0.00011232,2]
[323544227,1714080645835,-446.57315614,0.00011232,2]
[323544228,1714080645846,-618.92,0.00011232,2]
[323544229,1714080645857,-624.28951018,0.00011232,2]
[323544230,1714080645869,-500.0,0.00011232,2]
[323544231,1714080645879,-500.0,0.00011232,2]
[323544232,1714080645890,-500.0,0.00011232,2]
[323544233,1714080645900,-500.0,0.00011232,2]
[323544234,1714080645910,-500.0,0.00011232,2]
[323544235,1714080645921,-500.0,0.00011232,2]
[323544236,1714080645931,-504.40844123,0.00011232,2]
[323544237,1714080645942,-500.0,0.00011232,2]
[323544238,1714080645952,-500.0,0.00011232,2]
[323544239,1714080645962,-576.0654542,0.00011232,2]
[323544240,1714080645972,-500.0,0.00011232,2]
[323544241,1714080646147,-150.0,0.00011232,2]
[323544242,1714080646157,-583.82417728,0.00011232,2]
[323544243,1714080646168,-500.0,0.00011232,2]
[323544244,1714080646178,-500.0,0.00011232,2]
[323544245,1714080646188,-500.0,0.00011232,2]
[323544246,1714080646198,-500.0,0.00011232,2]
[323544247,1714080646207,-500.0,0.00011232,2]
[323544248,1714080646217,-500.0,0.00011232,2]
[323544249,1714080646226,-500.0,0.00011232,2]
[323544250,1714080646236,-500.0,0.00011232,2]
[323544251,1714080646247,-504.80855703,0.00011232,2]
[323544252,1714080646257,-500.0,0.00011232,2]
[323544253,1714080646267,-500.0,0.00011232,2]
[323544254,1714080646276,-500.0,0.00011232,2]
[323544255,1714080646285,-500.0,0.00011232,2]
[323544256,1714080646295,-500.0,0.00011232,2]
[323544257,1714080646305,-500.0,0.00011232,2]
[323544258,1714080646315,-500.0,0.00011232,2]
[323544259,1714080646325,-500.0,0.00011232,2]
[323544260,1714080646335,-384.22248746,0.00011232,2]
[323544261,1714080646345,-500.0,0.00011232,2]
[323544262,1714080646354,-578.94640226,0.00011232,2]
[323544263,1714080646366,-500.0,0.00011232,2]
[323544264,1714080646377,-500.0,0.00011232,2]
[323544265,1714080646386,-500.0,0.00011232,2]
[323544266,1714080646396,-500.0,0.00011232,2]
[323544267,1714080646406,-500.0,0.00011232,2]
[323544268,1714080646415,-500.0,0.00011232,2]
[323544269,1714080646426,-651.15,0.00011232,2]
[323544270,1714080646438,-500.0,0.00011232,2]
[323544271,1714080646448,-500.0,0.00011232,2]
[323544272,1714080646461,-1061.56,0.00011232,2]
[323544273,1714080646472,-167.1306648,0.00011232,2]
[323544274,1714080646482,-1329.59,0.00011232,2]
[323544275,1714080646493,-500.0,0.00011232,2]
[323544276,1714080646504,-1320.34,0.00011232,2]
[323544277,1714080646517,-328.45998132,0.00011232,2]
[323544278,1714080646529,-500.0,0.00011232,2]
[323544279,1714080646541,-500.0,0.00011232,2]
[323544280,1714080646551,-500.0,0.00011232,2]
[323544281,1714080646564,-500.0,0.00011232,2]
[323544282,1714080646573,-500.0,0.00011232,2]
[323544283,1714080646584,-500.0,0.00011232,2]
[323544284,1714080646595,-500.0,0.00011232,2]
[323544285,1714080646607,-500.0,0.00011232,2]
[323544286,1714080646619,-500.0,0.00011232,2]
[323544287,1714080646627,-279.17073842,0.00011232,2]
[323544288,1714080646637,-500.0,0.00011232,2]
[323544289,1714080646648,-284.80210235,0.00011232,2]
[323544290,1714080646660,-536.87465153,0.00011232,2]
[323544291,1714080646670,-500.0,0.00011232,2]
[323544292,1714080646680,-500.0,0.00011232,2]
[323544293,1714080646690,-500.0,0.00011232,2]
[323544294,1714080646700,-1297.11,0.00011232,2]
[323544295,1714080646711,-1228.53,0.00011232,2]
[323544296,1714080646723,-500.0,0.00011232,2]
[323544297,1714080646733,-500.0,0.00011232,2]
[323544298,1714080646742,-500.0,0.00011232,2]
[323544299,1714080646753,-500.0,0.00011232,2]
[323544300,1714080646763,-500.0,0.00011232,2]
[323544301,1714080646774,-500.0,0.00011232,2]
[323544302,1714080646784,-451.48346981,0.00011232,2]
[323544303,1714080646794,-500.0,0.00011232,2]
[323544304,1714080646802,-500.0,0.00011232,2]
[323544305,1714080646813,-500.0,0.00011232,2]
[323544306,1714080646822,-500.0,0.00011232,2]
[323544307,1714080646831,-500.0,0.00011232,2]
[323544308,1714080646842,-500.0,0.00011232,2]
[323544309,1714080646851,-500.0,0.00011232,2]
[323544310,1714080646861,-262.7018894,0.00011232,2]
[323544311,1714080646870,-500.0,0.00011232,2]
[323544312,1714080646879,-500.0,0.00011232,2]
[323544313,1714080646888,-501.3469974,0.00011232,2]
[323544314,1714080646897,-500.0,0.00011232,2]
[323544315,1714080646906,-500.0,0.00011232,2]
[323544316,1714080646915,-500.0,0.00011232,2]
[323544318,1714080646925,-500.0,0.00011232,2]
[323544320,1714080646936,-500.0,0.00011232,2]
[323544321,1714080646946,-500.0,0.00011232,2]
[323544322,1714080646955,-500.0,0.00011232,2]
[323544323,1714080646964,-500.0,0.00011232,2]
[323544325,1714080646973,-500.0,0.00011232,2]
[323544327,1714080646982,-1365.75,0.00011232,2]
[323544328,1714080646991,-500.0,0.00011232,2]
[323544331,1714080647001,-1169.91,0.00011232,2]
[323544333,1714080647010,-500.0,0.00011232,2]
[323544334,1714080647019,-499.17297707,0.00011232,2]
[323544336,1714080647028,-500.0,0.00011232,2]
[323544338,1714080647037,-500.0,0.00011232,2]
[323544340,1714080647047,-500.0,0.00011232,2]
[323544343,1714080647056,-191.4034475,0.00011232,2]
[323544345,1714080647066,-500.0,0.00011232,2]
[323544346,1714080647074,-555.02860246,0.00011232,2]
[323544348,1714080647084,-500.0,0.00011232,2]
[323544350,1714080647093,-501.13485296,0.00011232,2]
[323544352,1714080647102,-500.0,0.00011232,2]
[323544354,1714080647112,-500.0,0.00011232,2]
[323544355,1714080647121,-500.0,0.00011232,2]
[323544356,1714080647132,-554.96,0.00011232,2]
[323544357,1714080647142,-233.77814821,0.00011232,2]
[323544358,1714080647151,-581.84503802,0.00011232,2]
[323544359,1714080647160,-557.61529642,0.00011232,2]
[323544360,1714080647170,-500.0,0.00011232,2]
[323544361,1714080647179,-500.0,0.00011232,2]
[323544362,1714080647188,-295.88631865,0.00011232,2]
[323544363,1714080647198,-501.46,0.00011232,2]
[323544364,1714080647207,-707.07,0.00011232,2]
[323544365,1714080647217,-171.89943717,0.00011232,2]
[323544366,1714080647226,-161.57028172,0.00011232,2]
[323544367,1714080647235,-500.0,0.00011232,2]
[323544368,1714080647245,-500.0,0.00011232,2]
[323544369,1714080647255,-2475.92,0.00011232,2]
[323544370,1714080647264,-1059.5,0.00011232,2]
[323544371,1714080647273,-500.0,0.00011232,2]
[323544372,1714080647282,-525.94,0.00011232,2]
[323544373,1714080647292,-500.0,0.00011232,2]
[323544374,1714080647301,-1285.93,0.00011232,2]
[323544375,1714080647310,-500.0,0.00011232,2]
[323544376,1714080647319,-501.70859875,0.00011232,2]
[323544377,1714080647328,-500.0,0.00011232,2]
[323544378,1714080647338,-720.83,0.00011232,2]
[323544379,1714080647347,-500.0,0.00011232,2]
[323544380,1714080647357,-500.0,0.00011232,2]
[323544381,1714080647367,-500.0,0.00011232,2]
[323544382,1714080647377,-500.0,0.00011232,2]
[323544383,1714080647386,-500.0,0.00011232,2]
[323544384,1714080647397,-500.0,0.00011232,2]
[323544385,1714080647407,-647.26581805,0.00011232,2]
[323544386,1714080647417,-500.0,0.00011232,2]
[323544387,1714080647427,-383.42892835,0.00011232,2]
[323544388,1714080647436,-980.09,0.00011232,2]
[323544389,1714080647445,-660.63,0.00011232,2]
[323544390,1714080647454,-500.0,0.00011232,2]
[323544391,1714080647464,-500.0,0.00011232,2]
[323544392,1714080647473,-1585.97,0.00011232,2]
[323544393,1714080647483,-500.0,0.00011232,2]
[323544394,1714080647492,-500.0,0.00011232,2]
[323544395,1714080647501,-571.58,0.00011232,2]
[323544396,1714080647512,-500.0,0.00011232,2]
[323544397,1714080647522,-500.0,0.00011232,2]
[323544398,1714080647531,-500.0,0.00011232,2]
[323544399,1714080647541,-1418.95,0.00011232,2]
[323544400,1714080647552,-500.0,0.00011232,2]
[323544401,1714080647562,-500.0,0.00011232,2]
[323544402,1714080647572,-488.0,0.00011232,2]
[323544403,1714080647583,-500.0,0.00011232,2]
[323544404,1714080647593,-521.57,0.00011232,2]
[323544405,1714080647605,-1325.54,0.00011232,2]
[323544406,1714080647615,-500.0,0.00011232,2]
[323544407,1714080647625,-500.0,0.00011232,2]
[323544408,1714080647636,-500.0,0.00011232,2]
[323544409,1714080647646,-500.0,0.00011232,2]
[323544410,1714080647656,-500.0,0.00011232,2]
[323544411,1714080647666,-500.0,0.00011232,2]
[323544412,1714080647676,-500.0,0.00011232,2]
[323544413,1714080647686,-255.03484761,0.00011232,2]
[323544414,1714080647695,-500.0,0.00011232,2]
[323544415,1714080647706,-500.0,0.00011232,2]
[323544416,1714080647717,-500.0,0.00011232,2]
[323544417,1714080647727,-500.0,0.00011232,2]
[323544418,1714080647737,-500.0,0.00011232,2]
[323544419,1714080647747,-500.0,0.00011232,2]
[323544420,1714080647757,-500.0,0.00011232,2]
[323544421,1714080647767,-500.0,0.00011232,2]
[323544422,1714080647777,-1164.66,0.00011232,2]
[323544423,1714080647787,-500.0,0.00011232,2]
[323544424,1714080647800,-540.93,0.00011232,2]
[323544425,1714080647810,-500.0,0.00011232,2]
[323544426,1714080647821,-500.0,0.00011232,2]
[323544427,1714080647832,-1311.39,0.00011232,2]
[323544428,1714080647845,-1005.63,0.00011232,2]
[323544429,1714080647859,-500.0,0.00011232,2]
[323544430,1714080647870,-500.0,0.00011232,2]
[323544431,1714080647881,-500.0,0.00011232,2]
[323544432,1714080647891,-500.0,0.00011232,2]
[323544433,1714080647902,-619.56,0.00011232,2]
[323544434,1714080647912,-500.0,0.00011232,2]
[323544435,1714080647922,-500.0,0.00011232,2]
[323544436,1714080647932,-500.0,0.00011232,2]
[323544437,1714080647941,-500.0,0.00011232,2]
[323544438,1714080647950,-500.0,0.00011232,2]
[323544439,1714080647959,-500.0,0.00011232,2]
[323544440,1714080647969,-1213.04,0.00011232,2]
[323544441,1714080647978,-500.0,0.00011232,2]
[323544442,1714080647987,-500.0,0.00011232,2]
[323544443,1714080647996,-500.0,0.00011232,2]
[323544444,1714080648006,-500.0,0.00011232,2]
[323544445,1714080648015,-500.0,0.00011232,2]
[323544446,1714080648024,-500.0,0.00011232,2]
[323544447,1714080648033,-500.0,0.00011232,2]
[323544448,1714080648042,-500.0,0.00011232,2]
[323544449,1714080648052,-901.52,0.00011232,2]
[323544450,1714080648061,-500.0,0.00011232,2]
[323544451,1714080648070,-500.0,0.00011232,2]
[323544452,1714080648079,-500.0,0.00011232,2]
[323544453,1714080648088,-446.9,0.00011232,2]
[323544454,1714080648098,-500.0,0.00011232,2]
[323544455,1714080648107,-525.94,0.00011232,2]
[323544456,1714080648117,-500.0,0.00011232,2]
[323544457,1714080648126,-500.0,0.00011232,2]
[323544458,1714080648135,-500.0,0.00011232,2]
[323544459,1714080648145,-500.0,0.00011232,2]
[323544460,1714080648154,-500.0,0.00011232,2]
[323544461,1714080648164,-500.0,0.00011232,2]
[323544462,1714080648173,-500.0,0.00011232,2]
[323544463,1714080648182,-500.0,0.00011232,2]
[323544464,1714080648192,-500.0,0.00011232,2]
[323544465,1714080648201,-1182.76,0.00011232,2]
[323544466,1714080648211,-500.0,0.00011232,2]
[323544467,1714080648220,-500.0,0.00011232,2]
[323544468,1714080648230,-215.67225327,0.00011232,2]
[323544469,1714080648239,-500.0,0.00011232,2]
[323544470,1714080648249,-500.0,0.00011232,2]
[323544471,1714080648258,-500.0,0.00011232,2]
[323544472,1714080648268,-1996.25,0.00011232,2]
[323544473,1714080648277,-500.0,0.00011232,2]
[323544474,1714080648287,-500.0,0.00011232,2]
[323544475,1714080648296,-500.0,0.00011232,2]
[323544476,1714080648305,-500.0,0.00011232,2]
[323544477,1714080648314,-265.53409961,0.00011232,2]
[323544478,1714080648323,-525.78,0.00011232,2]
[323544479,1714080648333,-1476.4,0.00011232,2]
[323544480,1714080648343,-554.2304343,0.00011232,2]
[323544481,1714080648352,-500.0,0.00011232,2]
[323544482,1714080648361,-561.54312095,0.00011232,2]
[323544483,1714080648371,-500.0,0.00011232,2]
[323544484,1714080648380,-500.0,0.00011232,2]
[323544485,1714080648390,-500.0,0.00011232,2]
[323544486,1714080648400,-620.2,0.00011232,2]
[323544487,1714080648410,-500.0,0.00011232,2]
[323544488,1714080648419,-500.0,0.00011232,2]
[323544489,1714080648429,-500.0,0.00011232,2]
[323544490,1714080648439,-880.43,0.00011232,2]
[323544491,1714080648448,-399.94,0.00011232,2]
[323544492,1714080648457,-500.0,0.00011232,2]
[323544493,1714080648467,-675.03,0.00011232,2]
[323544494,1714080648477,-500.0,0.00011232,2]
[323544495,1714080648486,-500.0,0.00011232,2]
[323544496,1714080648497,-1103.98,0.00011232,2]
[323544497,1714080648507,-500.0,0.00011232,2]
[323544498,1714080648521,-1165.81,0.00011232,2]
[323544499,1714080648533,-500.0,0.00011232,2]
[323544500,1714080648545,-1249.78,0.00011232,2]
[323544501,1714080648555,-500.0,0.00011232,2]
[323544502,1714080648567,-500.0,0.00011232,2]
[323544503,1714080648577,-500.0,0.00011232,2]
[323544504,1714080648587,-500.0,0.00011232,2]
[323544505,1714080648597,-500.0,0.00011232,2]
[323544506,1714080648609,-500.0,0.00011232,2]
[323544507,1714080648620,-500.0,0.00011232,2]
[323544508,1714080648632,-500.0,0.00011232,2]
[323544509,1714080648644,-1098.48,0.00011232,2]
[323544510,1714080648656,-500.0,0.00011232,2]
[323544511,1714080648666,-392.87069465,0.00011232,2]
[323544512,1714080648676,-500.0,0.00011232,2]
[323544513,1714080648688,-500.0,0.00011232,2]
[323544514,1714080648698,-500.0,0.00011232,2]
[323544515,1714080648710,-625.46,0.00011232,2]
[323544516,1714080648722,-150.0,0.00011232,2]
[323544517,1714080648734,-500.0,0.00011232,2]
[323544518,1714080648744,-500.0,0.00011232,2]
[323544519,1714080648754,-500.0,0.00011232,2]
[323544520,1714080648766,-500.0,0.00011232,2]
[323544521,1714080648777,-500.0,0.00011232,2]
[323544522,1714080648787,-500.0,0.00011232,2]
[323544523,1714080648799,-500.0,0.00011232,2]
[323544524,1714080648810,-500.0,0.00011232,2]
[323544525,1714080648821,-414.09017696,0.00011232,2]
[323544526,1714080648831,-500.0,0.00011232,2]
[323544527,1714080648842,-500.0,0.00011232,2]
[323544528,1714080648852,-557.05,0.00011232,2]
[323544529,1714080648863,-508.57551046,0.00011232,2]
[323544530,1714080648873,-1315.36,0.00011232,2]
[323544531,1714080648884,-500.0,0.00011232,2]
[323544532,1714080648893,-500.0,0.00011232,2]
[323544533,1714080648902,-500.0,0.00011232,2]
[323544534,1714080648913,-500.0,0.00011232,2]
[323544535,1714080648924,-500.0,0.00011232,2]
[323544536,1714080648934,-500.0,0.00011232,2]
[323544537,1714080648943,-500.0,0.00011232,2]
[323544538,1714080648954,-500.0,0.00011232,2]
[323544539,1714080648965,-862.83,0.00011232,2]
[323544540,1714080648976,-500.0,0.00011232,2]
[323544541,1714080648986,-500.0,0.00011232,2]
[323544542,1714080648997,-500.0,0.00011232,2]
[323544543,1714080649007,-718.25,0.00011232,2]
[323544544,1714080649017,-500.0,0.00011232,2]
[323544545,1714080649026,-500.0,0.00011232,2]
[323544546,1714080649035,-500.0,0.00011232,2]
[323544547,1714080649046,-500.0,0.00011232,2]
[323544548,1714080649055,-500.0,0.00011232,2]
[323544549,1714080649065,-500.0,0.00011232,2]
[323544550,1714080649074,-450.11,0.00011232,2]
[323544551,1714080649084,-500.0,0.00011232,2]
[323544552,1714080649093,-500.0,0.00011232,2]
[323544553,1714080649103,-500.0,0.00011232,2]
[323544554,1714080649113,-500.0,0.00011232,2]
[323544555,1714080649123,-500.0,0.00011232,2]
[323544556,1714080649133,-500.0,0.00011232,2]
[323544557,1714080649144,-500.0,0.00011232,2]
[323544558,1714080649155,-506.57342914,0.00011232,2]
[323544559,1714080649165,-500.0,0.00011232,2]
[323544560,1714080649175,-442.23483443,0.00011232,2]
[323544561,1714080649185,-500.0,0.00011232,2]
[323544562,1714080649195,-500.0,0.00011232,2]
[323544563,1714080649205,-500.0,0.00011232,2]
[323544564,1714080649214,-500.0,0.00011232,2]
[323544565,1714080649224,-500.0,0.00011232,2]
[323544566,1714080649234,-500.0,0.00011232,2]
[323544567,1714080649243,-263.02695047,0.00011232,2]
[323544568,1714080649410,-500.0,0.00011232,2]
[323544569,1714080649421,-500.0,0.00011232,2]
[323544570,1714080649431,-543.08,0.00011232,2]
[323544571,1714080649441,-500.0,0.00011232,2]
[323544572,1714080649451,-500.0,0.00011232,2]
[323544573,1714080649461,-527.37,0.00011232,2]
[323544574,1714080649471,-500.0,0.00011232,2]
[323544575,1714080649480,-500.0,0.00011232,2]
[323544576,1714080649490,-550.92260623,0.00011232,2]
[323544577,1714080649499,-500.0,0.00011232,2]
[323544578,1714080649510,-500.0,0.00011232,2]
[323544579,1714080649521,-544.68,0.00011232,2]
[323544580,1714080649531,-500.0,0.00011232,2]
[323544581,1714080649540,-500.0,0.00011232,2]
[323544582,1714080649550,-3829.47,0.00011232,2]
[323544583,1714080649560,-500.0,0.00011232,2]
[323544584,1714080649569,-500.0,0.00011232,2]
[323544585,1714080649579,-500.0,0.00011232,2]
[323544586,1714080649589,-559.82,0.00011232,2]
[323544587,1714080649599,-769.83,0.00011232,2]
[323544588,1714080649608,-500.0,0.00011232,2]
[323544589,1714080649618,-500.0,0.00011232,2]
[323544590,1714080649627,-500.0,0.00011232,2]
[323544591,1714080649637,-500.0,0.00011232,2]
[323544592,1714080649646,-21849.76,0.00011232,2]
[323544593,1714080649655,-500.0,0.00011232,2]
[323544594,1714080649664,-500.0,0.00011232,2]
[323544595,1714080649676,-347.70572422,0.00011232,2]
[323544596,1714080649685,-500.0,0.00011232,2]
[323544597,1714080649695,-502.45,0.00011232,2]
[323544598,1714080649704,-765.12,0.00011232,2]
[323544599,1714080649713,-500.0,0.00011232,2]
[323544600,1714080649723,-500.0,0.00011232,2]
[323544601,1714080649732,-500.0,0.00011232,2]
[323544602,1714080649742,-500.0,0.00011232,2]
[323544603,1714080649751,-335.15208674,0.00011232,2]
[323544604,1714080649762,-8090.07,0.00011232,2]
[323544605,1714080649772,-500.0,0.00011232,2]
[323544606,1714080649781,-500.0,0.00011232,2]
[323544607,1714080649790,-1572.19,0.00011232,2]
[323544608,1714080649801,-500.0,0.00011232,2]
[323544609,1714080649810,-500.0,0.00011232,2]
[323544610,1714080649819,-2319.64,0.00011232,2]
[323544611,1714080649830,-1249.15,0.00011232,2]
[323544612,1714080649839,-1138.02,0.00011232,2]
[323544613,1714080649849,-500.0,0.00011232,2]
[323544614,1714080649858,-500.0,0.00011232,2]
[323544615,1714080649868,-500.0,0.00011232,2]
[323544616,1714080649878,-500.0,0.00011232,2]
[323544617,1714080649887,-500.0,0.00011232,2]
[323544618,1714080649896,-1373.13,0.00011232,2]
[323544619,1714080649906,-646.82,0.00011232,2]
[323544620,1714080649915,-4659.58,0.00011232,2]
[323544621,1714080649925,-500.0,0.00011232,2]
[323544622,1714080649934,-387.23367135,0.00011232,2]
[323544623,1714080649943,-886.17,0.00011232,2]
[323544624,1714080649952,-1226.99,0.00011232,2]
[323544625,1714080649962,-1134.99,0.00011232,2]
[323544626,1714080649971,-9497.36,0.00011232,2]
[323544627,1714080649980,-523.69,0.00011232,2]
[323544628,1714080649989,-500.0,0.00011232,2]
[323544629,1714080649998,-500.0,0.00011232,2]
[323544630,1714080650008,-500.0,0.00011232,2]
[323544631,1714080650017,-809.32,0.00011232,2]
[323544632,1714080650026,-1106.96,0.00011232,2]
[323544633,1714080650035,-1314.86,0.00011232,2]
[323544634,1714080650045,-506.71028523,0.00011232,2]
[323544635,1714080650054,-500.0,0.00011232,2]
[323544636,1714080650063,-834.43,0.00011232,2]
[323544637,1714080650072,-704.8,0.00011232,2]
[323544638,1714080650081,-500.0,0.00011232,2]
[323544639,1714080650090,-457.61,0.00011232,2]
[323544640,1714080650100,-1189.55,0.00011232,2]
[323544641,1714080650110,-500.0,0.00011232,2]
[323544642,1714080650119,-500.0,0.00011232,2]
[323544643,1714080650128,-500.0,0.00011232,2]
[323544644,1714080650138,-1383.71,0.00011232,2]
[323544645,1714080650147,-500.0,0.00011232,2]
[323544646,1714080650157,-500.0,0.00011232,2]
[323544647,1714080650166,-1756.87,0.00011232,2]
[323544648,1714080650175,-1264.18,0.00011232,2]
[323544649,1714080650185,-4390.51,0.00011232,2]
[323544650,1714080650194,-500.0,0.00011232,2]
[323544651,1714080650203,-500.0,0.00011232,2]
[323544652,1714080650213,-674.2,0.00011232,2]
[323544653,1714080650223,-500.0,0.00011232,2]
[323544654,1714080650232,-500.0,0.00011232,2]
[323544655,1714080650241,-500.0,0.00011232,2]
[323544656,1714080650250,-284.18477982,0.00011232,2]
[323544657,1714080650259,-500.0,0.00011232,2]